[Event "Czech Open-E Teams 2022"]
[Site "Pardubice"]
[Date "2022.07.15"]
[Round "2.21"]
[White "Cukrowski, Filip"]
[Black "Bares, Jachym"]
[Result "1/2-1/2"]
[ECO "A56"]
[WhiteElo "2378"]
[BlackElo "2129"]
[Annotator "ChessBase"]
[PlyCount "94"]
[EventDate "2022.07.14"]
[EventType "team-tourn"]
[EventCountry "CZE"]
[SourceTitle "playchess.com"]
[Source "ChessBase"]
[SourceQuality "1"]
[TimeControl "5400+30"]

1. d4 {[%emt 0:00:06]} Nf6 {[%emt 0:00:13]} 2. c4 {[%emt 0:00:06]} c5 {[%emt 0:04:26]} 3. Nf3 {[%emt 0:00:16]} cxd4 {[%emt 0:01:49]} 4. Nxd4 {[%emt 0:00:08]} e5 {[%emt 0:01:15]} 5. Nb5 {[%emt 0:00:08]} d5 {[%emt 0:02:12]} 6. cxd5 {[%emt 0:00:11]} Bc5 {[%emt 0:03:55]} 7. e3 {[%emt 0:01:41]} O-O 8. N5c3 {[%emt 0:14:52]} e4 {[%emt 0:00:00]} 9. a3 {[%emt 0:07:12]} Bf5 {[%emt 0:00:00]} 10. Be2 {[%emt 0:02:04]} Nbd7 {[%emt 0:00:00]} 11. Nd2 {[%emt 0:11:53]} Ne5 {[%emt 0:07:57]} 12. O-O {[%emt 0:06:32]} Re8 {[%emt 0:16:42]} 13. Nb3 {[%emt 0:02:53]} Bd6 {[%emt 0:08:37]} 14. Nd4 {[%emt 0:00:28]} Bd7 {[%emt 0:05:04]} 15. f4 {[%emt 0:08:05]} exf3 {[%emt 0:00:08]} 16. gxf3 {[%emt 0:00:01]} Ng6 {[%emt 0:22:36]} 17. f4 {[%emt 0:07:41]} Rc8 {[%emt 0:04:24]} 18. Qd3 {[%emt 0:05:06]} Bh3 {[%emt 0:10:15]} 19. Rf2 {[%emt 0:01:22]} Rxc3 {[%emt 0:00:10]} 20. bxc3 {[%emt 0:01:00]} Ne4 {[%emt 0:00:02]} 21. Rf3 {[%emt 0:07:44]} Bg4 {[%emt 0:01:35]} 22. Rf1 {[%emt 0:06:32]} Bh3 {[%emt 0:00:06]} 23. Rf3 {[%emt 0:01:35]} Bg4 {[%emt 0:00:55]} 24. Rg3 {[%emt 0:02:39]} Bxe2 {[%emt 0:04:13]} 25. Nxe2 {[%emt 0:00:32]} Nxg3 {[%emt 0:00:16]} 26. hxg3 {[%emt 0:00:05]} Bc5 {[%emt 0:00:46]} 27. Bd2 {[%emt 0:03:53]} Qd7 {[%emt 0:00:40]} 28. Kg2 {[%emt 0:01:18]} Qg4 {[%emt 0:00:50]} 29. Rh1 {[%emt 0:01:00]} h5 {[%emt 0:00:45]} 30. e4 {[%emt 0:01:31]} f5 {[%emt 0:02:32]} 31. e5 {[%emt 0:06:11]} Rxe5 32. Nc1 Re8 {[%emt 0:03:04]} 33. d6 {[%emt 0:01:06]} Kh7 {[%emt 0:00:51]} 34. d7 Rd8 {[%emt 0:00:28]} 35. Nb3 {[%emt 0:01:14]} Rxd7 {[%emt 0:00:28]} 36. Qf3 {[%emt 0:00:48]} Qxf3+ {[%emt 0:00:36]} 37. Kxf3 {[%emt 0:00:01]} Bxa3 {[%emt 0:00:38]} 38. Rxh5+ {[%emt 0:00:09]} Kg8 {[%emt 0:00:02]} 39. Rxf5 {[%emt 0:00:11]} Rd3+ {[%emt 0:00:40]} 40. Ke4 {[%emt 0:00:40]} Rxg3 {[%emt 0:00:25]} 41. Ra5 {[%emt 0:00:51]} Bb2 {[%emt 0:00:16]} 42. Rxa7 {[%emt 0:00:49]} Bxc3 {[%emt 0:00:18]} 43. Bxc3 {[%emt 0:00:04]} Rxc3 {[%emt 0:00:08]} 44. Rxb7 {[%emt 0:00:02]} Rc4+ {[%emt 0:00:21]} 45. Nd4 {[%emt 0:00:13]} Nxf4 {[%emt 0:01:01]} 46. Kxf4 {[%emt 0:00:05]} Rxd4+ {[%emt 0:00:05]} 47. Kg5 {[%emt 0:00:08]} Kh7 {[%emt 0:00:59]} 1/2-1/2

[Event "Czech Open-E Teams 2022"]
[Site "Pardubice"]
[Date "2022.07.15"]
[Round "2.22"]
[White "Londin, Simon"]
[Black "Kulon, Klaudia"]
[Result "0-1"]
[ECO "C55"]
[WhiteElo "2081"]
[BlackElo "2286"]
[Annotator "ChessBase"]
[PlyCount "76"]
[EventDate "2022.07.14"]
[EventType "team-tourn"]
[EventCountry "CZE"]
[SourceTitle "playchess.com"]
[Source "ChessBase"]
[SourceQuality "1"]
[TimeControl "5400+30"]

1. e4 {[%emt 0:00:40]} e5 {[%emt 0:00:09]} 2. Nf3 {[%emt 0:00:06]} Nc6 {[%emt 0:00:05]} 3. d4 {[%emt 0:00:04]} exd4 {[%emt 0:00:08]} 4. Bc4 {[%emt 0:00:05]} Nf6 {[%emt 0:00:52]} 5. e5 {[%emt 0:00:05]} d5 {[%emt 0:00:25]} 6. Bb5 {[%emt 0:00:01]} Ne4 {[%emt 0:00:07]} 7. Nxd4 {[%emt 0:00:06]} Bd7 {[%emt 0:00:04]} 8. Bxc6 {[%emt 0:00:05]} bxc6 {[%emt 0:00:02]} 9. O-O {[%emt 0:00:17]} Bc5 {[%emt 0:00:05]} 10. f3 {[%emt 0:00:02]} Ng5 {[%emt 0:00:05]} 11. f4 {[%emt 0:00:00]} Ne4 {[%emt 0:00:07]} 12. Be3 {[%emt 0:00:07]} Bb6 {[%emt 0:01:02]} 13. Nc3 {[%emt 0:03:14]} Nxc3 {[%emt 0:11:47]} 14. bxc3 {[%emt 0:00:02]} Qe7 {[%emt 0:00:09]} 15. Qd2 {[%emt 0:02:32]} O-O {[%emt 0:02:17]} 16. Rfe1 {[%emt 0:09:19]} Rad8 {[%emt 0:02:08]} 17. Nb3 {[%emt 0:03:34]} Bf5 {[%emt 0:01:26]} 18. a4 {[%emt 0:09:17]} a5 {[%emt 0:02:09]} 19. Qf2 {[%emt 0:00:38]} Rb8 {[%emt 0:00:43]} 20. Re2 {[%emt 0:21:50]} Rfe8 {[%emt 0:07:03]} 21. Bc5 {[%emt 0:10:37]} Qd7 {[%emt 0:01:16]} 22. Rae1 {[%emt 0:05:11]} Qc8 {[%emt 0:01:38]} 23. h3 {[%emt 0:04:48]} Re6 {[%emt 0:08:52]} 24. Bxb6 {[%emt 0:04:46]} cxb6 {[%emt 0:00:26]} 25. Nd4 {[%emt 0:00:23]} Re8 {[%emt 0:00:32]} 26. g4 {[%emt 0:01:29]} Be4 {[%emt 0:00:37]} 27. Qh4 {[%emt 0:00:58]} b5 {[%emt 0:01:49]} 28. f5 {[%emt 0:05:27]} Rxe5 {[%emt 0:00:37]} 29. Nf3 {[%emt 0:00:05]} Re8 {[%emt 0:01:32]} 30. Ng5 {[%emt 0:07:06]} h6 {[%emt 0:00:11]} 31. Nxe4 {[%emt 0:02:53]} dxe4 {[%emt 0:00:08]} 32. Rxe4 {[%emt 0:00:10]} Rxe4 {[%emt 0:01:00]} 33. Rxe4 {[%emt 0:00:01]} Qd7 {[%emt 0:00:57]} 34. g5 {[%emt 0:04:19]} hxg5 {[%emt 0:03:05]} 35. Qxg5 {[%emt 0:00:06]} Qd1+ {[%emt 0:00:07]} 36. Kf2 {[%emt 0:04:16]} Qxc2+ {[%emt 0:00:06]} 37. Re2 {[%emt 0:01:51]} Qxc3 {[%emt 0:00:05]} 38. Re3 {[%emt 0:00:10]} Qd4 {[%emt 0:00:53]} 0-1

[Event "Czech Open-E Teams 2022"]
[Site "Pardubice"]
[Date "2022.07.15"]
[Round "2.23"]
[White "Mondrzycki, Bartlomiej"]
[Black "Hrabal, Matej"]
[Result "1-0"]
[ECO "D02"]
[WhiteElo "2180"]
[BlackElo "1950"]
[Annotator "ChessBase"]
[PlyCount "39"]
[EventDate "2022.07.14"]
[EventType "team-tourn"]
[EventCountry "CZE"]
[SourceTitle "playchess.com"]
[Source "ChessBase"]
[SourceQuality "1"]
[TimeControl "5400+30"]

1. d4 {[%emt 0:00:14]} d5 {[%emt 0:11:22]} 2. Nf3 {[%emt 0:00:27]} e6 {[%emt 0:01:35]} 3. Bf4 {[%emt 0:01:42]} Nf6 {[%emt 0:00:33]} 4. e3 {[%emt 0:01:47]} Be7 {[%emt 0:00:12]} 5. Nbd2 O-O {[%emt 0:00:00]} 6. Bd3 {[%emt 0:11:26]} c5 {[%emt 0:00:00]} 7. c3 {[%emt 0:00:17]} b6 {[%emt 0:00:00]} 8. Ne5 {[%emt 0:04:47]} Bb7 {[%emt 0:01:35]} 9. Qf3 {[%emt 0:00:51]} Nbd7 {[%emt 0:03:53]} 10. Qh3 {[%emt 0:06:49]} Re8 {[%emt 0:31:55]} 11. g4 {[%emt 0:11:47]} g6 {[%emt 0:26:56]} 12. Ndf3 {[%emt 0:13:54]} Nxe5 {[%emt 0:02:38]} 13. Nxe5 {[%emt 0:01:27]} Nd7 {[%emt 0:04:26]} 14. Nxf7 {[%emt 0:00:23]} Qc8 {[%emt 0:03:12]} 15. Bxg6 {[%emt 0:04:03]} hxg6 {[%emt 0:02:06]} 16. Qh8+ {[%emt 0:00:12]} Kxf7 {[%emt 0:00:07]} 17. Qh7+ {[%emt 0:00:04]} Kf6 {[%emt 0:00:54]} 18. g5+ {[%emt 0:00:02]} Kf5 {[%emt 0:00:17]} 19. Qh3+ {[%emt 0:00:02]} Ke4 {[%emt 0:01:01]} 20. f3+ {[%emt 0:00:03]} 1-0

[Event "Czech Open-E Teams 2022"]
[Site "Pardubice"]
[Date "2022.07.15"]
[Round "2.24"]
[White "Jarab, Daniel Costa"]
[Black "Daniel, Damian"]
[Result "0-1"]
[ECO "B10"]
[WhiteElo "1923"]
[BlackElo "2172"]
[Annotator "ChessBase"]
[PlyCount "90"]
[EventDate "2022.07.14"]
[EventType "team-tourn"]
[EventCountry "CZE"]
[SourceTitle "playchess.com"]
[Source "ChessBase"]
[SourceQuality "1"]
[TimeControl "5400+30"]

1. e4 {[%emt 0:01:01]} c6 {[%emt 0:00:20]} 2. Nc3 {[%emt 0:00:18]} d5 {[%emt 0:00:08]} 3. Nf3 {[%emt 0:00:07]} dxe4 {[%emt 0:00:29]} 4. Nxe4 {[%emt 0:00:11]} Nd7 {[%emt 0:00:18]} 5. Bc4 {[%emt 0:01:32]} e6 {[%emt 0:00:24]} 6. d4 {[%emt 0:00:18]} Ngf6 {[%emt 0:00:14]} 7. Nxf6+ {[%emt 0:02:04]} Nxf6 {[%emt 0:00:10]} 8. O-O {[%emt 0:00:53]} Bd6 {[%emt 0:01:07]} 9. Bg5 {[%emt 0:00:40]} Qc7 {[%emt 0:02:08]} 10. Re1 {[%emt 0:01:25]} Nd5 {[%emt 0:08:05]} 11. Bh4 {[%emt 0:02:42]} b6 {[%emt 0:07:14]} 12. Bg3 {[%emt 0:01:10]} O-O {[%emt 0:05:19]} 13. Bb3 {[%emt 0:07:55]} Rd8 {[%emt 0:09:16]} 14. c4 {[%emt 0:06:21]} Nf6 {[%emt 0:04:55]} 15. Qc2 {[%emt 0:07:32]} c5 {[%emt 0:01:57]} 16. Rad1 {[%emt 0:05:11]} Bb7 {[%emt 0:03:21]} 17. dxc5 {[%emt 0:03:35]} Qxc5 {[%emt 0:01:07]} 18. Rxd6 {[%emt 0:02:57]} Rxd6 {[%emt 0:00:52]} 19. Bxd6 {[%emt 0:00:04]} Qxd6 {[%emt 0:00:00]} 20. Rd1 {[%emt 0:02:12]} Qf4 {[%emt 0:05:32]} 21. Rd4 {[%emt 0:04:35]} Qc7 {[%emt 0:03:40]} 22. Qd1 {[%emt 0:02:21]} Kf8 {[%emt 0:07:10]} 23. Bc2 {[%emt 0:03:51]} e5 {[%emt 0:10:02]} 24. Rd2 {[%emt 0:14:13]} g6 {[%emt 0:06:36]} 25. b3 {[%emt 0:03:15]} Re8 {[%emt 0:01:03]} 26. Qe2 {[%emt 0:05:04]} Kg7 {[%emt 0:00:52]} 27. h3 {[%emt 0:03:45]} h6 {[%emt 0:00:46]} 28. Qe3 {[%emt 0:01:52]} Bc6 {[%emt 0:03:36]} 29. Re2 {[%emt 0:02:04]} Qb7 {[%emt 0:01:27]} 30. Nxe5 {[%emt 0:01:08]} Bxg2 {[%emt 0:02:50]} 31. f4 {[%emt 0:00:40]} Bc6 {[%emt 0:01:52]} 32. Qc3 {[%emt 0:03:04]} Qe7 {[%emt 0:06:28]} 33. Bd3 {[%emt 0:06:33]} Qc5+ {[%emt 0:02:07]} 34. Kf1 {[%emt 0:00:34]} Qd6 {[%emt 0:00:46]} 35. Nxc6 {[%emt 0:02:27]} Qxc6 {[%emt 0:00:52]} 36. Rxe8 {[%emt 0:00:33]} Qxe8 {[%emt 0:00:01]} 37. Be2 {[%emt 0:01:50]} Qe4 {[%emt 0:00:51]} 38. Kf2 {[%emt 0:01:54]} Qxf4+ {[%emt 0:00:19]} 39. Qf3 {[%emt 0:00:07]} Ne4+ {[%emt 0:01:16]} 40. Kg2 {[%emt 0:00:23]} Qg5+ {[%emt 0:01:29]} 41. Qg4 {[%emt 0:00:14]} Nc3 {[%emt 0:02:29]} 42. Qxg5 {[%emt 0:01:06]} hxg5 {[%emt 0:00:01]} 43. Kf3 {[%emt 0:00:02]} Nxa2 {[%emt 0:00:52]} 44. Ke3 {[%emt 0:00:28]} Kf6 {[%emt 0:01:03]} 45. Kd4 {[%emt 0:00:13]} Kf5 {[%emt 0:00:49]} 0-1

[Event "Czech Open-E Teams 2022"]
[Site "Pardubice"]
[Date "2022.07.15"]
[Round "2.25"]
[White "Krejca, Jakub"]
[Black "Eret, Matous"]
[Result "1/2-1/2"]
[ECO "B42"]
[WhiteElo "2123"]
[BlackElo "2273"]
[Annotator "ChessBase"]
[PlyCount "61"]
[EventDate "2022.07.14"]
[EventType "team-tourn"]
[EventCountry "CZE"]
[SourceTitle "playchess.com"]
[Source "ChessBase"]
[SourceQuality "1"]
[TimeControl "5400+30"]

1. e4 {[%emt 0:00:03]} c5 {[%emt 0:03:51]} 2. Nf3 {[%emt 0:00:11]} e6 {[%emt 0:00:14]} 3. d4 {[%emt 0:00:05]} cxd4 {[%emt 0:00:03]} 4. Nxd4 {[%emt 0:00:06]} a6 {[%emt 0:00:08]} 5. Bd3 {[%emt 0:00:03]} Qc7 {[%emt 0:00:11]} 6. O-O {[%emt 0:01:01]} Nf6 {[%emt 0:00:08]} 7. Qe2 {[%emt 0:00:21]} d6 {[%emt 0:00:10]} 8. Nc3 {[%emt 0:00:04]} Be7 {[%emt 0:00:13]} 9. Bd2 {[%emt 0:00:19]} Bd7 {[%emt 0:07:34]} 10. Kh1 {[%emt 0:00:49]} Nc6 {[%emt 0:00:56]} 11. Nxc6 {[%emt 0:01:08]} Bxc6 {[%emt 0:00:11]} 12. f4 {[%emt 0:00:19]} h5 {[%emt 0:04:34]} 13. a4 {[%emt 0:06:42]} h4 {[%emt 0:02:32]} 14. b4 {[%emt 0:04:15]} Nh5 {[%emt 0:07:23]} 15. b5 {[%emt 0:08:03]} d5 {[%emt 0:01:35]} 16. Rf3 {[%emt 0:27:28]} dxe4 {[%emt 0:07:39]} 17. Nxe4 {[%emt 0:03:06]} axb5 {[%emt 0:01:13]} 18. Bxb5 {[%emt 0:01:53]} Kf8 {[%emt 0:06:06]} 19. Bxc6 {[%emt 0:06:20]} Qxc6 {[%emt 0:01:10]} 20. Rc3 {[%emt 0:03:30]} Qd5 {[%emt 0:05:09]} 21. Rd3 {[%emt 0:07:20]} Qf5 {[%emt 0:03:15]} 22. Qf3 {[%emt 0:07:45]} Kg8 {[%emt 0:19:09]} 23. Rd7 {[%emt 0:03:21]} Nf6 {[%emt 0:05:10]} 24. Nxf6+ {[%emt 0:04:56]} Bxf6 {[%emt 0:00:05]} 25. Qxb7 {[%emt 0:02:15]} Bxa1 {[%emt 0:01:28]} 26. Qxa8+ {[%emt 0:00:58]} Kh7 {[%emt 0:00:03]} 27. Rd8 {[%emt 0:06:55]} Rxd8 {[%emt 0:00:15]} 28. Qxd8 {[%emt 0:00:08]} Qxc2 {[%emt 0:00:20]} 29. Qxh4+ {[%emt 0:01:16]} Kg8 {[%emt 0:00:15]} 30. Qd8+ {[%emt 0:01:18]} Kh7 {[%emt 0:00:03]} 31. Qh4+ {[%emt 0:03:09]} 1/2-1/2

[Event "Czech Open-E Teams 2022"]
[Site "Pardubice"]
[Date "2022.07.15"]
[Round "2.26"]
[White "Eret, Jonas"]
[Black "Malcanek, Jan"]
[Result "1/2-1/2"]
[ECO "A46"]
[WhiteElo "2219"]
[BlackElo "2049"]
[Annotator "ChessBase"]
[PlyCount "67"]
[EventDate "2022.07.14"]
[EventType "team-tourn"]
[EventCountry "CZE"]
[SourceTitle "playchess.com"]
[Source "ChessBase"]
[SourceQuality "1"]
[TimeControl "5400+30"]

1. d4 {[%emt 0:12:44]} Nf6 {[%emt 0:02:02]} 2. Nf3 {[%emt 0:00:07]} e6 {[%emt 0:00:56]} 3. Bf4 {[%emt 0:00:10]} c5 {[%emt 0:01:01]} 4. e3 {[%emt 0:00:05]} cxd4 {[%emt 0:08:42]} 5. exd4 {[%emt 0:00:05]} Qb6 {[%emt 0:00:40]} 6. Qc1 {[%emt 0:02:58]} d5 {[%emt 0:01:13]} 7. Bd3 {[%emt 0:01:54]} Bd7 {[%emt 0:00:07]} 8. a4 {[%emt 0:02:02]} Nc6 {[%emt 0:06:40]} 9. c3 {[%emt 0:01:26]} Rc8 {[%emt 0:00:06]} 10. O-O {[%emt 0:00:58]} Nh5 {[%emt 0:00:59]} 11. Be3 {[%emt 0:07:08]} Bd6 {[%emt 0:00:48]} 12. Re1 {[%emt 0:04:06]} Qc7 {[%emt 0:08:35]} 13. Nbd2 {[%emt 0:02:11]} h6 {[%emt 0:01:22]} 14. Qd1 {[%emt 0:06:10]} Nf6 {[%emt 0:13:00]} 15. Nf1 {[%emt 0:05:06]} O-O {[%emt 0:06:43]} 16. Bc2 {[%emt 0:10:29]} Rfe8 {[%emt 0:00:48]} 17. Ng3 {[%emt 0:03:30]} a6 {[%emt 0:02:38]} 18. Qd2 {[%emt 0:07:38]} Ng4 {[%emt 0:01:46]} 19. Qd3 {[%emt 0:01:02]} f5 {[%emt 0:00:25]} 20. Nf1 {[%emt 0:05:18]} b5 {[%emt 0:08:21]} 21. Qe2 {[%emt 0:04:04]} Na5 {[%emt 0:07:46]} 22. Bd3 {[%emt 0:03:53]} Rb8 {[%emt 0:07:29]} 23. axb5 {[%emt 0:02:04]} Bxb5 {[%emt 0:06:46]} 24. Bc1 {[%emt 0:01:50]} Nf6 {[%emt 0:02:15]} 25. Ne5 {[%emt 0:06:29]} Nb3 {[%emt 0:01:05]} 26. Ra2 {[%emt 0:00:34]} Bxe5 {[%emt 0:07:43]} 27. dxe5 {[%emt 0:02:32]} Nxc1 {[%emt 0:01:31]} 28. Rxc1 {[%emt 0:00:06]} Nd7 {[%emt 0:02:21]} 29. Re1 {[%emt 0:01:05]} Nc5 {[%emt 0:00:07]} 30. Bxb5 {[%emt 0:00:43]} axb5 {[%emt 0:00:05]} 31. Qe3 {[%emt 0:01:48]} Ra8 {[%emt 0:00:42]} 32. Rea1 {[%emt 0:00:31]} Rxa2 {[%emt 0:00:05]} 33. Rxa2 {[%emt 0:00:03]} Rb8 34. Qe2 1/2-1/2

[Event "Czech Open-E Teams 2022"]
[Site "Pardubice"]
[Date "2022.07.15"]
[Round "2.27"]
[White "Galda, Tomas"]
[Black "Simet, Martin"]
[Result "0-1"]
[ECO "A22"]
[WhiteElo "1790"]
[BlackElo "2155"]
[Annotator "ChessBase"]
[PlyCount "58"]
[EventDate "2022.07.14"]
[EventType "team-tourn"]
[EventCountry "CZE"]
[SourceTitle "playchess.com"]
[Source "ChessBase"]
[SourceQuality "1"]
[TimeControl "5400+30"]

1. c4 {[%emt 0:00:12]} e5 {[%emt 0:14:34]} 2. Nc3 {[%emt 0:00:11]} Nf6 {[%emt 0:00:08]} 3. g3 {[%emt 0:00:09]} d5 {[%emt 0:00:11]} 4. cxd5 {[%emt 0:00:12]} Nxd5 {[%emt 0:00:05]} 5. Bg2 {[%emt 0:00:22]} Nb6 {[%emt 0:00:06]} 6. Nf3 {[%emt 0:00:35]} Nc6 {[%emt 0:00:08]} 7. d3 {[%emt 0:01:05]} Be7 {[%emt 0:01:16]} 8. O-O {[%emt 0:03:30]} O-O {[%emt 0:00:06]} 9. a3 {[%emt 0:02:45]} Re8 {[%emt 0:00:24]} 10. b4 {[%emt 0:04:09]} Bf8 {[%emt 0:00:05]} 11. Bb2 {[%emt 0:01:47]} a5 {[%emt 0:02:51]} 12. b5 {[%emt 0:02:08]} Nd4 {[%emt 0:00:37]} 13. a4 {[%emt 0:09:11]} Bg4 {[%emt 0:03:05]} 14. Nd2 {[%emt 0:04:50]} Bb4 {[%emt 0:02:12]} 15. Re1 {[%emt 0:03:54]} Rb8 {[%emt 0:09:34]} 16. h3 {[%emt 0:04:25]} Bh5 {[%emt 0:01:09]} 17. g4 {[%emt 0:11:07]} Bg6 {[%emt 0:00:11]} 18. e3 {[%emt 0:04:08]} Ne6 {[%emt 0:00:44]} 19. Nde4 {[%emt 0:02:46]} Qh4 {[%emt 0:00:46]} 20. Ng3 {[%emt 0:05:34]} Rbd8 {[%emt 0:01:59]} 21. Nf5 {[%emt 0:08:49]} Bxf5 {[%emt 0:00:44]} 22. gxf5 {[%emt 0:00:04]} Nc5 {[%emt 0:00:08]} 23. Bf1 {[%emt 0:06:46]} Nc4 {[%emt 0:00:33]} 24. dxc4 {[%emt 0:02:41]} Rxd1 {[%emt 0:00:06]} 25. Rexd1 {[%emt 0:00:17]} Bxc3 {[%emt 0:03:23]} 26. Bxc3 {[%emt 0:01:04]} Ne4 {[%emt 0:00:01]} 27. Be1 {[%emt 0:00:13]} Ng5 {[%emt 0:00:06]} 28. Bg2 {[%emt 0:02:20]} Nxh3+ {[%emt 0:00:09]} 29. Kf1 {[%emt 0:00:07]} Qxc4+ {[%emt 0:00:04]} 0-1

[Event "Czech Open-E Teams 2022"]
[Site "Pardubice"]
[Date "2022.07.15"]
[Round "2.28"]
[White "Singleton, Michael P F"]
[Black "Hampl, Pavel"]
[Result "0-1"]
[ECO "C60"]
[WhiteElo "2042"]
[BlackElo "1632"]
[Annotator "ChessBase"]
[PlyCount "54"]
[EventDate "2022.07.14"]
[EventType "team-tourn"]
[EventCountry "CZE"]
[SourceTitle "playchess.com"]
[Source "ChessBase"]
[SourceQuality "1"]
[TimeControl "5400+30"]

1. e4 {[%emt 0:10:14]} e5 {[%emt 0:00:45]} 2. Nf3 {[%emt 0:00:10]} Nc6 {[%emt 0:00:09]} 3. Bb5 {[%emt 0:00:24]} Nge7 {[%emt 0:01:11]} 4. Nc3 {[%emt 0:02:16]} d6 {[%emt 0:01:03]} 5. d4 {[%emt 0:03:07]} Bd7 {[%emt 0:01:33]} 6. d5 {[%emt 0:01:48]} Nb8 {[%emt 0:02:27]} 7. O-O {[%emt 0:01:35]} a6 {[%emt 0:00:14]} 8. Bc4 {[%emt 0:02:16]} Ng6 {[%emt 0:01:47]} 9. Be3 {[%emt 0:03:48]} Be7 {[%emt 0:01:47]} 10. h3 {[%emt 0:01:41]} O-O {[%emt 0:01:16]} 11. Qd2 {[%emt 0:01:50]} f5 {[%emt 0:02:40]} 12. Ng5 {[%emt 0:02:50]} f4 {[%emt 0:00:42]} 13. Bc5 {[%emt 0:02:07]} Bxg5 {[%emt 0:00:54]} 14. Bb4 f3 15. Qd3 {[%emt 0:16:44]} fxg2 {[%emt 0:01:46]} 16. Rfd1 {[%emt 0:01:36]} Nf4 {[%emt 0:00:09]} 17. Qg3 {[%emt 0:06:47]} Bh4 {[%emt 0:00:24]} 18. Qe3 {[%emt 0:04:03]} Nxh3+ {[%emt 0:07:28]} 19. Kxg2 {[%emt 0:06:23]} Bxf2 {[%emt 0:02:27]} 20. Qd2 {[%emt 0:03:04]} Qh4 {[%emt 0:01:12]} 21. Ne2 {[%emt 0:05:17]} Qxe4+ {[%emt 0:02:41]} 22. Kh2 {[%emt 0:02:26]} Be3 {[%emt 0:00:14]} 23. Ng3 {[%emt 0:02:08]} Bf4 {[%emt 0:06:12]} 24. Qc3 {[%emt 0:02:54]} Bxg3+ {[%emt 0:00:38]} 25. Kxg3 {[%emt 0:02:47]} Qg4+ {[%emt 0:00:04]} 26. Kh2 {[%emt 0:02:03]} Rf2+ {[%emt 0:00:02]} 27. Kh1 Qg3 0-1

[Event "Czech Open-E Teams 2022"]
[Site "Pardubice"]
[Date "2022.07.15"]
[Round "2.29"]
[White "Sodoma, Jan"]
[Black "Zigmund, David"]
[Result "1-0"]
[ECO "A31"]
[WhiteElo "2312"]
[BlackElo "1942"]
[Annotator "ChessBase"]
[PlyCount "25"]
[EventDate "2022.07.14"]
[EventType "team-tourn"]
[EventCountry "CZE"]
[SourceTitle "playchess.com"]
[Source "ChessBase"]
[SourceQuality "1"]
[TimeControl "5400+30"]

1. Nf3 {[%emt 0:39:07]} Nf6 {[%emt 0:01:30]} 2. c4 {[%emt 0:00:10]} c5 {[%emt 0:01:10]} 3. d4 {[%emt 0:00:18]} cxd4 {[%emt 0:00:25]} 4. Nxd4 {[%emt 0:00:07]} Nc6 {[%emt 0:00:48]} 5. g3 {[%emt 0:01:39]} g6 {[%emt 0:00:28]} 6. Bg2 {[%emt 0:00:42]} Bg7 {[%emt 0:00:06]} 7. O-O {[%emt 0:00:07]} O-O {[%emt 0:00:23]} 8. Nc3 {[%emt 0:00:06]} a6 {[%emt 0:04:46]} 9. b3 {[%emt 0:03:15]} Qc7 {[%emt 0:08:05]} 10. Bb2 {[%emt 0:00:22]} d6 {[%emt 0:00:42]} 11. Rc1 {[%emt 0:01:01]} Nxd4 {[%emt 0:07:16]} 12. Qxd4 {[%emt 0:01:32]} Nd7 {[%emt 0:07:03]} 13. Qxg7+ {[%emt 0:00:37]} 1-0

[Event "Czech Open-E Teams 2022"]
[Site "Pardubice"]
[Date "2022.07.15"]
[Round "2.30"]
[White "Tesar, Patrik"]
[Black "Vitak, Jiri"]
[Result "0-1"]
[ECO "A46"]
[WhiteElo "2088"]
[BlackElo "2223"]
[Annotator "ChessBase"]
[PlyCount "112"]
[EventDate "2022.07.14"]
[EventType "team-tourn"]
[EventCountry "CZE"]
[SourceTitle "playchess.com"]
[Source "ChessBase"]
[SourceQuality "1"]
[TimeControl "5400+30"]

1. d4 {[%emt 0:00:02]} Nf6 {[%emt 0:00:21]} 2. Nf3 {[%emt 0:00:04]} c5 {[%emt 0:00:27]} 3. dxc5 {[%emt 0:00:06]} e6 {[%emt 0:00:26]} 4. Be3 {[%emt 0:00:07]} Na6 {[%emt 0:02:00]} 5. c3 {[%emt 0:00:44]} Nxc5 {[%emt 0:01:08]} 6. Bxc5 {[%emt 0:01:02]} Bxc5 {[%emt 0:00:12]} 7. e3 {[%emt 0:00:07]} d5 {[%emt 0:01:44]} 8. Nbd2 {[%emt 0:00:25]} O-O {[%emt 0:00:17]} 9. Qc2 {[%emt 0:00:15]} Qc7 {[%emt 0:03:49]} 10. Nb3 {[%emt 0:06:25]} Bd6 {[%emt 0:01:28]} 11. h4 {[%emt 0:00:26]} e5 {[%emt 0:02:22]} 12. O-O-O {[%emt 0:00:08]} a5 {[%emt 0:03:09]} 13. Nbd2 {[%emt 0:02:44]} Be6 {[%emt 0:04:53]} 14. Ng5 {[%emt 0:01:04]} a4 {[%emt 0:07:46]} 15. Nxe6 {[%emt 0:01:24]} fxe6 {[%emt 0:00:07]} 16. Be2 {[%emt 0:03:59]} a3 {[%emt 0:00:52]} 17. b3 {[%emt 0:00:10]} Rfc8 {[%emt 0:04:13]} 18. c4 {[%emt 0:04:45]} b5 {[%emt 0:00:18]} 19. Qd3 {[%emt 0:07:01]} e4 {[%emt 0:04:16]} 20. Qc2 {[%emt 0:02:25]} Rab8 {[%emt 0:00:36]} 21. c5 {[%emt 0:01:41]} Bxc5 {[%emt 0:02:15]} 22. Kb1 {[%emt 0:00:49]} Qb7 {[%emt 0:01:20]} 23. Qc3 {[%emt 0:01:33]} b4 {[%emt 0:04:09]} 24. Qe5 {[%emt 0:00:36]} Qe7 {[%emt 0:00:20]} 25. g4 {[%emt 0:03:41]} Bd6 {[%emt 0:00:41]} 26. Qg5 {[%emt 0:00:22]} Rc5 {[%emt 0:05:07]} 27. h5 {[%emt 0:03:00]} h6 {[%emt 0:04:34]} 28. Qh4 {[%emt 0:00:23]} Nh7 {[%emt 0:00:20]} 29. Qxe7 {[%emt 0:02:21]} Bxe7 {[%emt 0:00:07]} 30. Rc1 {[%emt 0:01:10]} Rbc8 {[%emt 0:00:07]} 31. Rxc5 {[%emt 0:00:18]} Rxc5 {[%emt 0:00:08]} 32. Rc1 {[%emt 0:00:19]} Ng5 {[%emt 0:02:09]} 33. Rxc5 {[%emt 0:00:29]} Bxc5 {[%emt 0:00:06]} 34. Bf1 {[%emt 0:00:56]} Kf7 {[%emt 0:02:34]} 35. Kc2 {[%emt 0:01:02]} Kf6 {[%emt 0:00:45]} 36. Kd1 {[%emt 0:00:30]} Nf7 {[%emt 0:02:35]} 37. Be2 {[%emt 0:12:00]} Ne5 {[%emt 0:01:47]} 38. Nf1 {[%emt 0:00:31]} Kg5 {[%emt 0:01:48]} 39. Nh2 {[%emt 0:00:07]} Kh4 {[%emt 0:03:03]} 40. Kd2 {[%emt 0:00:06]} Kh3 {[%emt 0:01:02]} 41. f4 {[%emt 0:00:15]} Kxh2 {[%emt 0:00:45]} 42. fxe5 {[%emt 0:00:27]} Kg3 {[%emt 0:00:07]} 43. Bb5 {[%emt 0:00:41]} Kxg4 {[%emt 0:00:13]} 44. Ke2 {[%emt 0:00:42]} Kf5 {[%emt 0:00:13]} 45. Be8 {[%emt 0:00:32]} Kxe5 {[%emt 0:00:09]} 46. Bg6 {[%emt 0:00:32]} Kf6 {[%emt 0:00:44]} 47. Kd2 {[%emt 0:01:19]} e5 {[%emt 0:01:25]} 48. Ke2 {[%emt 0:00:17]} Kg5 {[%emt 0:00:19]} 49. Bf7 {[%emt 0:02:08]} d4 {[%emt 0:00:25]} 50. Bg6 {[%emt 0:00:07]} Kg4 {[%emt 0:02:16]} 51. Kf2 {[%emt 0:01:25]} Be7 {[%emt 0:01:19]} 52. exd4 {[%emt 0:05:41]} exd4 {[%emt 0:00:26]} 53. Ke2 {[%emt 0:00:35]} Kf4 {[%emt 0:00:09]} 54. Kd2 {[%emt 0:00:31]} Bg5 {[%emt 0:00:16]} 55. Ke2 {[%emt 0:00:35]} d3+ {[%emt 0:00:11]} 56. Kd2 {[%emt 0:01:14]} Ke5+ {[%emt 0:00:12]} 0-1